fUSD/lending_fUSD_20260601
["ID","MTS","AMOUNT","RATE_DAILY","PERIOD"]
[423587147,1780251048000,-321.8032783,0.00030596,2]
[423587142,1780251048000,-480.46061783,0.00030596,2]
[423587145,1780251048000,-452.34385118,0.00030596,2]
[423587141,1780251048000,-207.55057899,0.00030596,2]
[423587151,1780251048000,-406.41158022,0.00030596,2]
[423587152,1780251048000,-402.06599864,0.00030596,2]
[423587176,1780251048000,-1144.0,0.00030703,30]
[423587150,1780251048000,-163.10316335,0.00030596,2]
[423587149,1780251048000,-484.45853372,0.00030596,2]
[423587154,1780251048000,-460.43772914,0.00030596,2]
[423587164,1780251048000,-453.11485488,0.00030601,2]
[423587153,1780251048000,-501.73813349,0.00030596,2]
[423587158,1780251048000,-280.24856263,0.00030596,2]
[423587155,1780251048000,-298.66164108,0.00030596,2]
[423587157,1780251048000,-150.06642712,0.00030596,2]
[423587156,1780251048000,-289.25346421,0.00030596,2]
[423587163,1780251048000,-295.05186744,0.00030601,2]
[423587162,1780251048000,-491.94038545,0.00030596,2]
[423587159,1780251048000,-241.32114498,0.00030596,2]
[423587160,1780251048000,-649.29395262,0.00030596,2]
[423587161,1780251048000,-295.26397494,0.00030596,2]
[423587148,1780251048000,-155.29320833,0.00030596,2]
[423587195,1780251048000,-649.601898,0.00030747,7]
[423587205,1780251048000,-200.0,0.00031096,2]
[423587197,1780251048000,-151.0,0.00030747,7]
[423587229,1780251048000,-660.02778398,0.00031136,2]
[423587231,1780251048000,-696.35480911,0.00031136,2]
[423587233,1780251048000,-638.3057243,0.00031136,2]
[423587232,1780251048000,-217.5978607,0.00031136,2]
[423587230,1780251048000,-309.13290211,0.00031136,2]
[423587235,1780251048000,-744.35457234,0.00031182,2]
[423587234,1780251048000,-679.56868725,0.00031136,2]
[423587236,1780251048000,-654.78698779,0.00031182,2]
[423587241,1780251048000,-682.88651608,0.00031187,2]
[423587240,1780251048000,-446.36574819,0.00031187,2]
[423587242,1780251048000,-488.25674548,0.00031187,2]
[423587251,1780251048000,-919.14499558,0.00031187,2]
[423587243,1780251048000,-594.71090719,0.00031187,2]
[423587245,1780251048000,-431.36159387,0.00031187,2]
[423587247,1780251048000,-346.61684002,0.00031187,2]
[423587248,1780251048000,-333.91838698,0.00031187,2]
[423587244,1780251048000,-384.56370732,0.00031187,2]
[423587250,1780251048000,-212.80508935,0.00031187,2]
[423587249,1780251048000,-411.57344024,0.00031187,2]
[423587246,1780251048000,-329.82409151,0.00031187,2]
[423587252,1780251048000,-518.10703436,0.00031187,2]
[423587255,1780251048000,-222.40384719,0.00031187,2]
[423587254,1780251048000,-590.10161953,0.00031187,2]
[423587256,1780251048000,-167.95156274,0.00031187,2]
[423587257,1780251048000,-455.25686989,0.00031187,2]
[423587253,1780251048000,-587.79305241,0.00031187,2]
[423587259,1780251048000,-659.82363289,0.00031187,2]
[423587238,1780251048000,-709.27910748,0.00031182,2]
[423587239,1780251048000,-831.73024282,0.00031187,2]
[423587200,1780251048000,-655.0,0.00030875,6]
[423587228,1780251048000,-784.69751888,0.00031136,2]
[423587226,1780251048000,-618.17749423,0.00031136,2]
[423587198,1780251048000,-151.0,0.00030747,7]
[423587196,1780251048000,-518.696371,0.00030747,7]
[423587202,1780251048000,-150.0,0.00031011,2]
[423587204,1780251048000,-1534.42944089,0.00031071,7]
[423587203,1780251048000,-575.1,0.00031062,2]
[423587208,1780251048000,-661.16202466,0.00031136,2]
[423587206,1780251048000,-486.43,0.000311,7]
[423587207,1780251048000,-300.13285425,0.00031136,2]
[423587213,1780251048000,-456.80167812,0.00031136,2]
[423587210,1780251048000,-202.51134261,0.00031136,2]
[423587209,1780251048000,-708.3287838,0.00031136,2]
[423587211,1780251048000,-700.31886927,0.00031136,2]
[423587212,1780251048000,-639.27478188,0.00031136,2]
[423587258,1780251048000,-709.4149618,0.00031187,2]
[423587225,1780251048000,-472.03184783,0.00031136,2]
[423587215,1780251048000,-593.71616971,0.00031136,2]
[423587227,1780251048000,-321.409638,0.00031136,2]
[423587220,1780251048000,-669.17097579,0.00031136,2]
[423587223,1780251048000,-214.12801187,0.00031136,2]
[423587224,1780251048000,-515.27183966,0.00031136,2]
[423587218,1780251048000,-878.48496612,0.00031136,2]
[423587222,1780251048000,-540.23620703,0.00031136,2]
[423587237,1780251048000,-636.37030438,0.00031182,2]
[423587221,1780251048000,-627.1249291,0.00031136,2]
[423587217,1780251048000,-165.70510902,0.00031136,2]
[423587214,1780251048000,-456.39027243,0.00031136,2]
[423587216,1780251048000,-548.67590777,0.00031136,2]
[423587219,1780251048000,-589.85616931,0.00031136,2]
[423587300,1780251049000,-482.70491745,0.00031187,2]
[423587296,1780251049000,-678.51577677,0.00031187,2]
[423587299,1780251049000,-510.54670468,0.00031187,2]
[423587297,1780251049000,-168.89801685,0.00031187,2]
[423587298,1780251049000,-167.53519908,0.00031187,2]
[423587302,1780251049000,-645.94471163,0.00031187,2]
[423587295,1780251049000,-666.38831559,0.00031187,2]
[423587294,1780251049000,-1125.31078797,0.00031187,2]
[423587290,1780251049000,-415.10115798,0.00031187,2]
[423587292,1780251049000,-431.75728483,0.00031187,2]
[423587303,1780251049000,-326.20632669,0.00031187,2]
[423587293,1780251049000,-640.61415711,0.00031187,2]
[423587304,1780251049000,-609.61737033,0.00031187,2]
[423587317,1780251049000,-590.10373488,0.00031192,2]
[423587307,1780251049000,-613.91697219,0.00031187,2]
[423587308,1780251049000,-164.99594136,0.00031187,2]
[423587305,1780251049000,-603.09899796,0.00031187,2]
[423587306,1780251049000,-668.98417799,0.00031187,2]
[423587310,1780251049000,-578.50692843,0.00031187,2]
[423587312,1780251049000,-268.15849662,0.00031187,2]
[423587311,1780251049000,-560.49712527,0.00031187,2]
[423587313,1780251049000,-482.64228996,0.00031187,2]
[423587309,1780251049000,-597.32328217,0.00031187,2]
[423587316,1780251049000,-655.92051393,0.00031187,2]
[423587326,1780251049000,-270.32,0.000312,7]
[423587318,1780251049000,-604.15313983,0.00031192,2]
[423587301,1780251049000,-310.58641667,0.00031187,2]
[423587314,1780251049000,-865.72527015,0.00031187,2]
[423587291,1780251049000,-160.52383582,0.00031187,2]
[423587276,1780251049000,-157.75957663,0.00031187,2]
[423587289,1780251049000,-161.56256408,0.00031187,2]
[423587315,1780251049000,-590.52794988,0.00031187,2]
[423587260,1780251049000,-349.08950313,0.00031187,2]
[423587261,1780251049000,-487.8378687,0.00031187,2]
[423587263,1780251049000,-155.84289064,0.00031187,2]
[423587264,1780251049000,-150.18483003,0.00031187,2]
[423587262,1780251049000,-159.8992,0.00031187,2]
[423587265,1780251049000,-733.65942942,0.00031187,2]
[423587267,1780251049000,-462.25398991,0.00031187,2]
[423587277,1780251049000,-168.29590529,0.00031187,2]
[423587269,1780251049000,-477.88340493,0.00031187,2]
[423587278,1780251049000,-594.25714983,0.00031187,2]
[423587266,1780251049000,-484.15099726,0.00031187,2]
[423587274,1780251049000,-165.5789139,0.00031187,2]
[423587288,1780251049000,-315.42133647,0.00031187,2]
[423587272,1780251049000,-168.82067048,0.00031187,2]
[423587270,1780251049000,-485.74674913,0.00031187,2]
[423587268,1780251049000,-170.17613914,0.00031187,2]
[423587271,1780251049000,-618.11070299,0.00031187,2]
[423587275,1780251049000,-1083.77652292,0.00031187,2]
[423587279,1780251049000,-164.4424265,0.00031187,2]
[423587283,1780251049000,-168.87080563,0.00031187,2]
[423587280,1780251049000,-413.57620668,0.00031187,2]
[423587286,1780251049000,-457.92924254,0.00031187,2]
[423587284,1780251049000,-1170.99671198,0.00031187,2]
[423587282,1780251049000,-178.15740495,0.00031187,2]
[423587281,1780251049000,-590.58049934,0.00031187,2]
[423587287,1780251049000,-441.00387709,0.00031187,2]
[423587285,1780251049000,-170.8250504,0.00031187,2]
[423587273,1780251049000,-663.00694006,0.00031187,2]
[423587319,1780251049000,-505.54127023,0.00031192,2]
[423587321,1780251049000,-611.88126985,0.00031192,2]
[423587320,1780251049000,-530.18364758,0.00031192,2]
[423587354,1780251049000,-783.90616138,0.00031726,2]
[423587362,1780251049000,-886.76870225,0.00031778,2]
[423587363,1780251049000,-824.77954111,0.00031778,2]
[423587360,1780251049000,-795.46288047,0.00031773,2]
[423587364,1780251049000,-917.07428677,0.00031778,2]
[423587358,1780251049000,-930.44321542,0.00031773,2]
[423587357,1780251049000,-870.44351139,0.00031726,2]
[423587361,1780251049000,-1148.93124447,0.00031778,2]
[423587356,1780251049000,-980.8718986,0.00031726,2]
[423587359,1780251049000,-815.59666689,0.00031773,2]
[423587366,1780251049000,-1354.72065365,0.00031778,2]
[423587376,1780251049000,-655.0,0.00031943,7]
[423587373,1780251049000,-857.18629111,0.00031783,2]
[423587367,1780251049000,-1463.74588997,0.00031778,2]
[423587369,1780251049000,-832.98539449,0.00031778,2]
[423587374,1780251049000,-184.98,0.00031885,2]
[423587372,1780251049000,-767.39621524,0.00031778,2]
[423587365,1780251049000,-772.63837874,0.00031778,2]
[423587368,1780251049000,-1406.63848496,0.00031778,2]
[423587371,1780251049000,-836.23022249,0.00031778,2]
[423587370,1780251049000,-809.81518846,0.00031778,2]
[423587375,1780251049000,-194.2058089,0.000319,30]
[423587378,1780251049000,-166.32529734,0.00032,120]
[423587377,1780251049000,-1001.0,0.00031945,120]
[423587379,1780251049000,-273.16186606,0.00032,120]
[423587380,1780251049000,-267.1900387,0.00032,120]
[423587382,1780251049000,-190.60357362,0.00032,120]
[423587355,1780251049000,-772.72186778,0.00031726,2]
[423587353,1780251049000,-836.46371973,0.00031726,2]
[423587381,1780251049000,-342.00358051,0.00032,120]
[423587340,1780251049000,-684.0,0.00031703,30]
[423587323,1780251049000,-614.59933957,0.00031192,2]
[423587325,1780251049000,-160.0,0.000312,7]
[423587322,1780251049000,-685.74903289,0.00031192,2]
[423587324,1780251049000,-160.0,0.000312,7]
[423587327,1780251049000,-202.74,0.000312,7]
[423587330,1780251049000,-343.140001,0.000312,7]
[423587332,1780251049000,-1517.36,0.000313,7]
[423587328,1780251049000,-202.74,0.000312,7]
[423587349,1780251049000,-839.0,0.00031706,30]
[423587329,1780251049000,-232.819999,0.000312,7]
[423587331,1780251049000,-156.0,0.00031202,3]
[423587334,1780251049000,-655.0,0.00031409,6]
[423587336,1780251049000,-1220.32,0.00031507,30]
[423587339,1780251049000,-535.0,0.00031703,30]
[423587333,1780251049000,-1590.0,0.00031408,3]
[423587335,1780251049000,-1676.35,0.00031484,2]
[423587345,1780251049000,-220.0,0.00031703,30]
[423587337,1780251049000,-5020.83,0.000316,14]
[423587344,1780251049000,-158.0,0.00031703,30]
[423587343,1780251049000,-1144.0,0.00031703,30]
[423587342,1780251049000,-1421.0,0.00031703,30]
[423587350,1780251049000,-192.0,0.00031706,30]
[423587351,1780251049000,-1841.0,0.00031706,30]
[423587352,1780251049000,-885.41097975,0.00031726,2]
[423587346,1780251049000,-1199.0,0.00031703,30]
[423587347,1780251049000,-444.0,0.00031706,30]
[423587341,1780251049000,-343.0,0.00031703,30]
[423587338,1780251049000,-151.0,0.00031634,4]
[423587348,1780251049000,-287.0,0.00031706,30]
[423587421,1780251050000,-655.0,0.00032477,7]
[423587419,1780251050000,-1000.0,0.00032351,4]
[423587422,1780251050000,-1000.0,0.00032499,28]
[423587424,1780251050000,-1000.0,0.000325,7]
[423587420,1780251050000,-7764.55,0.00032352,14]
[423587415,1780251050000,-151.0,0.00032329,7]
[423587417,1780251050000,-151.0,0.00032329,7]
[423587416,1780251050000,-151.0,0.00032329,7]
[423587414,1780251050000,-486.43,0.000323,7]
[423587425,1780251050000,-150.0,0.00032562,2]
[423587418,1780251050000,-199.566695,0.00032329,7]
[423587423,1780251050000,-1000.0,0.000325,2]
[423587439,1780251050000,-1625.66478438,0.00032665,2]
[423587427,1780251050000,-1062.4931757,0.00032612,2]
[423587428,1780251050000,-1003.75646368,0.00032612,2]
[423587436,1780251050000,-989.73544933,0.00032665,2]
[423587435,1780251050000,-1064.12244269,0.00032665,2]
[423587431,1780251050000,-1273.0,0.00032649,2]
[423587434,1780251050000,-1378.71749337,0.00032665,2]
[423587437,1780251050000,-1019.83486938,0.00032665,2]
[423587438,1780251050000,-927.16605449,0.00032665,2]
[423587429,1780251050000,-940.68739366,0.00032612,2]
[423587430,1780251050000,-212.02958337,0.00032634,4]
[423587432,1780251050000,-525.0,0.00032649,2]
[423587433,1780251050000,-1226.0,0.00032649,2]
[423587408,1780251050000,-183.280001,0.000322,12]
[423587426,1780251050000,-651.36,0.000326,7]
[423587410,1780251050000,-160.0,0.000322,12]
[423587397,1780251050000,-922.9385503,0.00032,120]
[423587407,1780251050000,-177.9,0.000322,12]
[423587440,1780251050000,-1756.49506797,0.00032665,2]
[423587388,1780251050000,-227.86978202,0.00032,120]
[423587386,1780251050000,-564.62657632,0.00032,120]
[423587385,1780251050000,-502.62444396,0.00032,120]
[423587384,1780251050000,-343.80148986,0.00032,120]
[423587383,1780251050000,-163.46624608,0.00032,120]
[423587387,1780251050000,-198.77394416,0.00032,120]
[423587400,1780251050000,-703.41061854,0.00032,120]
[423587389,1780251050000,-1133.42842041,0.00032,120]
[423587390,1780251050000,-593.30220303,0.00032,120]
[423587392,1780251050000,-2445.37886363,0.00032,120]
[423587391,1780251050000,-1298.59053919,0.00032,120]
[423587394,1780251050000,-1036.60253855,0.00032,120]
[423587393,1780251050000,-689.86263822,0.00032,120]
[423587396,1780251050000,-797.16641382,0.00032,120]
[423587398,1780251050000,-2474.04258438,0.00032,120]
[423587395,1780251050000,-1071.12217871,0.00032,120]
[423587399,1780251050000,-1106.55898899,0.00032,120]
[423587402,1780251050000,-157.06,0.00032,2]
[423587401,1780251050000,-700.0,0.00032,2]
[423587403,1780251050000,-181.89853059,0.00032,120]
[423587406,1780251050000,-245.48,0.000322,12]
[423587404,1780251050000,-200.0,0.00032055,2]
[423587405,1780251050000,-3639.0,0.00032179,2]
[423587413,1780251050000,-772.6,0.0003221,5]
[423587412,1780251050000,-208.151544,0.000322,12]
[423587411,1780251050000,-160.0,0.000322,12]
[423587409,1780251050000,-286.348455,0.000322,12]
[423587448,1780251050000,-2000.0,0.00032693,7]
[423587442,1780251050000,-1043.829591,0.00032665,2]
[423587449,1780251050000,-535.0,0.00032703,30]
[423587477,1780251050000,-200.0,0.00032789,2]
[423587476,1780251050000,-200.0,0.00032789,2]
[423587485,1780251050000,-200.0,0.00032789,2]
[423587482,1780251050000,-200.0,0.00032789,2]
[423587479,1780251050000,-200.0,0.00032789,2]
[423587481,1780251050000,-200.0,0.00032789,2]
[423587486,1780251050000,-166.0,0.00032789,2]
[423587478,1780251050000,-200.0,0.00032789,2]
[423587487,1780251050000,-200.0,0.00032789,2]
[423587480,1780251050000,-200.0,0.00032789,2]
[423587483,1780251050000,-200.0,0.00032789,2]
[423587489,1780251050000,-200.0,0.00032789,2]
[423587499,1780251050000,-200.0,0.00032789,2]
[423587490,1780251050000,-200.0,0.00032789,2]
[423587491,1780251050000,-200.0,0.00032789,2]
[423587495,1780251050000,-200.0,0.00032789,2]
[423587493,1780251050000,-200.0,0.00032789,2]
[423587488,1780251050000,-200.0,0.00032789,2]
[423587494,1780251050000,-200.0,0.00032789,2]
[423587497,1780251050000,-200.0,0.00032789,2]
[423587492,1780251050000,-200.0,0.00032789,2]
[423587496,1780251050000,-200.0,0.00032789,2]
[423587498,1780251050000,-200.0,0.00032789,2]
[423587501,1780251050000,-200.0,0.00032789,2]
[423587500,1780251050000,-200.0,0.00032789,2]
[423587503,1780251050000,-200.0,0.00032789,2]
[423587443,1780251050000,-909.42637194,0.00032665,2]
[423587475,1780251050000,-200.0,0.00032789,2]
[423587471,1780251050000,-200.0,0.00032789,2]
[423587484,1780251050000,-200.0,0.00032789,2]
[423587472,1780251050000,-200.0,0.00032789,2]
[423587473,1780251050000,-200.0,0.00032789,2]
[423587444,1780251050000,-971.77822615,0.00032665,2]
[423587447,1780251050000,-26897.0,0.00032673,2]
[423587441,1780251050000,-1687.96618195,0.00032665,2]
[423587446,1780251050000,-920.87545828,0.00032665,2]
[423587450,1780251050000,-684.0,0.00032703,30]
[423587445,1780251050000,-1003.47626699,0.00032665,2]
[423587453,1780251050000,-1144.0,0.00032703,30]
[423587451,1780251050000,-343.0,0.00032703,30]
[423587455,1780251050000,-220.0,0.00032703,30]
[423587462,1780251050000,-500.0,0.00032789,2]
[423587454,1780251050000,-158.0,0.00032703,30]
[423587452,1780251050000,-1421.0,0.00032703,30]
[423587457,1780251050000,-444.0,0.00032706,30]
[423587502,1780251050000,-200.0,0.00032789,2]
[423587461,1780251050000,-1841.0,0.00032706,30]
[423587460,1780251050000,-192.0,0.00032706,30]
[423587470,1780251050000,-200.0,0.00032789,2]
[423587468,1780251050000,-530.0,0.00032789,2]
[423587474,1780251050000,-200.0,0.00032789,2]
[423587467,1780251050000,-500.0,0.00032789,2]
[423587466,1780251050000,-500.0,0.00032789,2]
[423587469,1780251050000,-200.0,0.00032789,2]
[423587463,1780251050000,-500.0,0.00032789,2]
[423587464,1780251050000,-500.0,0.00032789,2]
[423587456,1780251050000,-1199.0,0.00032703,30]
[423587458,1780251050000,-287.0,0.00032706,30]
[423587459,1780251050000,-839.0,0.00032706,30]
[423587465,1780251050000,-500.0,0.00032789,2]
[423587539,1780251051000,-295.61,0.000329,120]
[423587540,1780251051000,-407.0,0.00032955,2]
[423587550,1780251051000,-267.1900387,0.00033,120]
[423587532,1780251051000,-423.13003328,0.00032877,2]
[423587549,1780251051000,-273.16186606,0.00033,120]
[423587542,1780251051000,-419.05891266,0.00032955,2]
[423587544,1780251051000,-400.0,0.00032955,2]
[423587548,1780251051000,-166.32529734,0.00033,120]
[423587538,1780251051000,-198.77,0.000329,120]
[423587537,1780251051000,-5020.83,0.000329,14]
[423587545,1780251051000,-400.0,0.00032955,2]
[423587541,1780251051000,-407.0,0.00032955,2]
[423587547,1780251051000,-403.93373113,0.00032955,2]
[423587551,1780251051000,-342.00358051,0.00033,120]
[423587543,1780251051000,-246.09559064,0.00032955,2]
[423587552,1780251051000,-190.60357362,0.00033,120]
[423587562,1780251051000,-2445.37886363,0.00033,120]
[423587561,1780251051000,-1298.59053919,0.00033,120]
[423587553,1780251051000,-163.46624608,0.00033,120]
[423587563,1780251051000,-689.86263822,0.00033,120]
[423587554,1780251051000,-343.80148986,0.00033,120]
[423587555,1780251051000,-502.62444396,0.00033,120]
[423587557,1780251051000,-198.77394416,0.00033,120]
[423587556,1780251051000,-564.62657632,0.00033,120]
[423587560,1780251051000,-593.30220303,0.00033,120]
[423587559,1780251051000,-1133.42842041,0.00033,120]
[423587533,1780251051000,-1220.31229003,0.00032877,30]
[423587546,1780251051000,-400.0,0.00032955,2]
[423587531,1780251051000,-500.0,0.00032877,2]
[423587505,1780251051000,-200.0,0.00032789,2]
[423587530,1780251051000,-500.0,0.00032877,2]
[423587504,1780251051000,-200.0,0.00032789,2]
[423587507,1780251051000,-200.0,0.00032789,2]
[423587510,1780251051000,-200.0,0.00032789,2]
[423587506,1780251051000,-200.0,0.00032789,2]
[423587508,1780251051000,-200.0,0.00032789,2]
[423587509,1780251051000,-200.0,0.00032789,2]
[423587514,1780251051000,-200.0,0.00032789,2]
[423587511,1780251051000,-200.0,0.00032789,2]
[423587512,1780251051000,-200.0,0.00032789,2]
[423587515,1780251051000,-200.0,0.00032789,2]
[423587513,1780251051000,-200.0,0.00032789,2]
[423587518,1780251051000,-200.0,0.00032789,2]
[423587516,1780251051000,-200.0,0.00032789,2]
[423587517,1780251051000,-200.0,0.00032789,2]
[423587520,1780251051000,-200.0,0.00032789,2]
[423587521,1780251051000,-200.0,0.00032789,2]
[423587519,1780251051000,-200.0,0.00032789,2]
[423587523,1780251051000,-200.0,0.00032789,2]
[423587522,1780251051000,-200.0,0.00032789,2]
[423587525,1780251051000,-350.8,0.00032877,2]
[423587528,1780251051000,-500.0,0.00032877,2]
[423587527,1780251051000,-500.0,0.00032877,2]
[423587526,1780251051000,-500.0,0.00032877,2]
[423587536,1780251051000,-293.80344897,0.00032877,10]
[423587535,1780251051000,-500.0,0.00032877,10]
[423587524,1780251051000,-154.0,0.00032789,2]
[423587529,1780251051000,-500.0,0.00032877,2]
[423587534,1780251051000,-500.0,0.00032877,10]
[423587565,1780251051000,-1071.12217871,0.00033,120]
[423587558,1780251051000,-227.86978202,0.00033,120]
[423587566,1780251051000,-797.16641382,0.00033,120]
[423587593,1780251051000,-158.0,0.00033703,30]
[423587599,1780251051000,-192.0,0.00033706,30]
[423587597,1780251051000,-287.0,0.00033706,30]
[423587603,1780251051000,-254.54,0.0003383,7]
[423587601,1780251051000,-481.23555062,0.00033753,2]
[423587605,1780251051000,-166.32529734,0.000339,120]
[423587606,1780251051000,-273.16186606,0.000339,120]
[423587604,1780251051000,-165.40430947,0.000339,2]
[423587607,1780251051000,-267.1900387,0.000339,120]
[423587608,1780251051000,-342.00358051,0.000339,120]
[423587609,1780251051000,-190.60357362,0.000339,120]
[423587611,1780251051000,-343.80148986,0.000339,120]
[423587613,1780251051000,-564.62657632,0.000339,120]
[423587596,1780251051000,-444.0,0.00033706,30]
[423587612,1780251051000,-502.62444396,0.000339,120]
[423587614,1780251051000,-198.77394416,0.000339,120]
[423587616,1780251051000,-593.30220303,0.000339,120]
[423587617,1780251051000,-1298.59053919,0.000339,120]
[423587622,1780251051000,-797.16641382,0.000339,120]
[423587621,1780251051000,-1071.12217871,0.000339,120]
[423587620,1780251051000,-1036.60253855,0.000339,120]
[423587618,1780251051000,-2445.37886363,0.000339,120]
[423587615,1780251051000,-1133.42842041,0.000339,120]
[423587619,1780251051000,-689.86263822,0.000339,120]
[423587624,1780251051000,-2474.04258438,0.000339,120]
[423587626,1780251051000,-703.41061854,0.000339,120]
[423587625,1780251051000,-1106.55898899,0.000339,120]
[423587564,1780251051000,-1036.60253855,0.00033,120]
[423587623,1780251051000,-922.9385503,0.000339,120]
[423587595,1780251051000,-1199.0,0.00033703,30]
[423587610,1780251051000,-163.46624608,0.000339,120]
[423587598,1780251051000,-839.0,0.00033706,30]
[423587575,1780251051000,-350.0,0.00033014,5]
[423587600,1780251051000,-1841.0,0.00033706,30]
[423587576,1780251051000,-1517.36,0.000331,7]
[423587570,1780251051000,-703.41061854,0.00033,120]
[423587567,1780251051000,-922.9385503,0.00033,120]
[423587569,1780251051000,-1106.55898899,0.00033,120]
[423587574,1780251051000,-655.0,0.00033011,8]
[423587568,1780251051000,-2474.04258438,0.00033,120]
[423587572,1780251051000,-181.89853059,0.00033,120]
[423587573,1780251051000,-1000.0,0.0003301,8]
[423587577,1780251051000,-1000.0,0.00033199,16]
[423587590,1780251051000,-343.0,0.00033703,30]
[423587578,1780251051000,-160.0,0.000332,16]
[423587589,1780251051000,-684.0,0.00033703,30]
[423587571,1780251051000,-220.14,0.00033,14]
[423587580,1780251051000,-244.7,0.000332,16]
[423587594,1780251051000,-220.0,0.00033703,30]
[423587579,1780251051000,-244.7,0.000332,16]
[423587602,1780251051000,-1000.0,0.00033786,32]
[423587591,1780251051000,-1421.0,0.00033703,30]
[423587585,1780251051000,-655.0,0.00033545,9]
[423587587,1780251051000,-239.77,0.00033662,7]
[423587581,1780251051000,-388.41161781,0.000332,30]
[423587592,1780251051000,-1144.0,0.00033703,30]
[423587583,1780251051000,-1000.92020843,0.00033495,2]
[423587584,1780251051000,-254.7,0.00033495,7]
[423587586,1780251051000,-1335.43,0.00033607,14]
[423587588,1780251051000,-535.0,0.00033703,30]
[423587582,1780251051000,-1500.0,0.000334,7]
[423587669,1780251052000,-696.01,0.0003438,2]
[423587667,1780251052000,-500.0,0.0003438,2]
[423587666,1780251052000,-500.0,0.0003438,2]
[423587689,1780251052000,-343.0,0.00034703,30]
[423587668,1780251052000,-500.0,0.0003438,2]
[423587665,1780251052000,-500.0,0.0003438,2]
[423587673,1780251052000,-407.0,0.00034453,2]
[423587674,1780251052000,-407.0,0.00034453,2]
[423587662,1780251052000,-247.45,0.00034332,7]
[423587663,1780251052000,-500.0,0.0003438,2]
[423587656,1780251052000,-245.17,0.00034165,7]
[423587672,1780251052000,-436.55876002,0.00034438,2]
[423587664,1780251052000,-500.0,0.0003438,2]
[423587670,1780251052000,-631.8,0.0003438,2]
[423587685,1780251052000,-655.0,0.00034613,10]
[423587675,1780251052000,-407.0,0.00034453,2]
[423587678,1780251052000,-150.0,0.00034453,2]
[423587677,1780251052000,-150.0,0.00034453,2]
[423587679,1780251052000,-400.0,0.00034453,2]
[423587681,1780251052000,-400.0,0.00034453,2]
[423587676,1780251052000,-150.0,0.00034453,2]
[423587682,1780251052000,-582.61742672,0.000345,30]
[423587683,1780251052000,-2000.0,0.0003452,7]
[423587687,1780251052000,-535.0,0.00034703,30]
[423587680,1780251052000,-400.0,0.00034453,2]
[423587684,1780251052000,-165.68,0.00034521,120]
[423587686,1780251052000,-8644.49975259,0.00034656,2]
[423587654,1780251052000,-1000.0,0.00034136,40]
[423587671,1780251052000,-707.62968569,0.0003438,14]
[423587653,1780251052000,-7764.55,0.00034117,30]
[423587630,1780251052000,-350.0,0.00033973,5]
[423587659,1780251052000,-1000.0,0.00034199,21]
[423587634,1780251052000,-1189.80734761,0.00033995,2]
[423587631,1780251052000,-1608.50374226,0.00033995,2]
[423587628,1780251052000,-1171.04920763,0.0003394,2]
[423587627,1780251052000,-1239.57537165,0.0003394,2]
[423587635,1780251052000,-1081.69373023,0.00033995,2]
[423587632,1780251052000,-1241.47618314,0.00033995,2]
[423587633,1780251052000,-1154.69135756,0.00033995,2]
[423587629,1780251052000,-1097.46862593,0.0003394,2]
[423587636,1780251052000,-1896.60891511,0.00033995,2]
[423587639,1780251052000,-1217.8011895,0.00033995,2]
[423587637,1780251052000,-2049.24424596,0.00033995,2]
[423587648,1780251052000,-750.0,0.00034,2]
[423587638,1780251052000,-1969.29387894,0.00033995,2]
[423587647,1780251052000,-486.43,0.00034,30]
[423587640,1780251052000,-1060.99743393,0.00033995,2]
[423587643,1780251052000,-1170.72231149,0.00033995,2]